bitfinex/quotes_BTCUSD_20220405
["timestamp","ask_amount","ask_price","bid_price","bid_amount"]
[1649179246796,0.15302988,45961.0,45951.0,0.1317]
[1649179246901,0.15302988,45961.0,45960.0,0.00199704]
[1649179246902,0.47657488,45961.0,45960.0,0.00199704]
[1649179247444,0.52657488,45961.0,45960.0,0.00199704]
[1649179247546,0.52657488,45961.0,45952.0,0.3]
[1649179247645,0.52657488,45961.0,45952.0,0.59552518]
[1649179247646,0.4393729,45961.0,45952.0,0.59552518]
[1649179247749,0.4937829,45961.0,45958.0,0.00027862]
[1649179247845,0.323545,45960.0,45958.0,0.00027862]
[1649179248845,0.323545,45960.0,45951.0,0.0318]
[1649179248995,0.4937829,45961.0,45960.0,0.00283578]
[1649179248996,0.8173279,45961.0,45960.0,0.00283578]
[1649179249395,0.7629179,45961.0,45960.0,0.00283578]
[1649179250915,0.47657488,45961.0,45960.0,0.00283578]
[1649179251007,0.15302988,45961.0,45960.0,0.00283578]
[1649179251230,0.15302988,45961.0,45956.0,0.30566739]
[1649179251618,0.15302988,45961.0,45957.0,0.39576006]
[1649179251820,0.15302988,45961.0,45958.0,0.27946693]
[1649179251920,0.15302988,45961.0,45959.0,0.3]
[1649179252319,0.15302988,45961.0,45958.0,0.27946693]
[1649179252718,0.15302988,45961.0,45959.0,0.3]
[1649179252826,0.15302988,45961.0,45958.0,0.27946693]
[1649179252972,0.15302988,45961.0,45959.0,0.3]
[1649179253071,0.15302988,45961.0,45960.0,0.66047471]
[1649179253173,0.15302988,45961.0,45960.0,0.623545]
[1649179253274,0.15302988,45961.0,45960.0,0.734425]
[1649179253371,0.15302988,45961.0,45960.0,0.778125]
[1649179253478,0.15302988,45961.0,45960.0,0.48141236]
[1649179253573,0.1539949,45961.0,45960.0,0.78470518]
[1649179253670,0.1539949,45961.0,45960.0,0.46116018]
[1649179253870,0.1539949,45961.0,45960.0,0.78470518]
[1649179254373,0.1539949,45961.0,45960.0,0.68470518]
[1649179254526,0.1539949,45961.0,45960.0,0.00658018]
[1649179255741,0.15302988,45961.0,45960.0,0.00966181]
[1649179257491,0.15399175,45961.0,45960.0,0.00329282]
[1649179259143,0.15399175,45961.0,45959.0,0.00616997]
[1649179260343,0.15399175,45961.0,45960.0,0.323545]
[1649179261397,0.1559984,45961.0,45960.0,0.32663202]
[1649179262100,0.1559984,45961.0,45960.0,0.00308702]
[1649179263142,0.1559984,45961.0,45959.0,0.00607398]
[1649179263250,0.38850661,45961.0,45959.0,0.00607398]
[1649179264244,0.38850661,45961.0,45960.0,0.323545]
[1649179264446,0.1559984,45961.0,45960.0,0.323545]
[1649179265148,0.1559984,45961.0,45960.0,0.32673543]
[1649179265951,0.1559984,45961.0,45960.0,0.00319043]
[1649179267392,0.1559984,45961.0,45959.0,0.00617419]
[1649179276549,0.15302988,45961.0,45959.0,0.00617419]
[1649179277047,0.323545,45960.0,45959.0,0.00617419]
[1649179277551,0.32450658,45960.0,45959.0,0.00617419]
[1649179279454,0.00096158,45960.0,45959.0,0.00617419]
[1649179279858,0.20478521,45961.0,45959.0,0.00906381]
[1649179280307,0.15478521,45961.0,45959.0,0.00906381]
[1649179280513,0.15478521,45961.0,45959.0,0.25178936]
[1649179282142,0.20478521,45961.0,45959.0,0.25178936]
[1649179282243,0.20478521,45961.0,45959.0,0.24581679]
[1649179282445,0.20478521,45961.0,45960.0,0.323545]
[1649179282545,0.20478521,45961.0,45959.0,0.24581679]
[1649179283350,0.15478521,45961.0,45959.0,0.24581679]
[1649179283650,0.15478521,45961.0,45960.0,0.323545]
[1649179283851,0.15478521,45961.0,45959.0,0.24581679]
[1649179284153,0.15478521,45961.0,45959.0,0.00309124]
[1649179284253,0.15478521,45961.0,45960.0,0.323545]
[1649179284353,0.15478521,45961.0,45959.0,0.00309124]
[1649179284454,0.15478521,45961.0,45958.0,0.18683941]
[1649179284852,0.15478521,45961.0,45958.0,0.18631324]
[1649179284992,0.15478521,45961.0,45959.0,0.323545]
[1649179285089,0.15478521,45961.0,45959.0,0.17684675]
[1649179285191,0.15478521,45961.0,45960.0,0.323545]
[1649179286592,0.15478521,45961.0,45960.0,0.3268497]
[1649179287042,0.15478521,45961.0,45960.0,0.6268497]
[1649179287144,0.15478521,45961.0,45960.0,0.80369645]
[1649179287441,0.15478521,45961.0,45960.0,0.6268497]
[1649179287746,0.15302988,45961.0,45960.0,0.7068497]
[1649179287997,0.15302988,45961.0,45960.0,1.08210905]
[1649179288092,0.15302988,45961.0,45960.0,1.31404749]
[1649179288192,0.15302988,45961.0,45960.0,1.09298905]
[1649179288397,0.15489264,45961.0,45960.0,1.09298905]
[1649179288499,0.15489264,45961.0,45960.0,1.35825918]
[1649179289001,0.15489264,45961.0,45960.0,1.45825918]
[1649179289299,0.15489264,45961.0,45960.0,1.19298905]
[1649179289800,0.15489264,45961.0,45960.0,1.45821118]
[1649179290200,0.15302988,45961.0,45960.0,1.46170535]
[1649179291004,0.15302988,45961.0,45960.0,1.19648322]
[1649179291106,0.15302988,45961.0,45960.0,1.24648322]
[1649179291352,0.15302988,45961.0,45960.0,1.56697189]
[1649179291755,0.15302988,45961.0,45960.0,1.62134189]
[1649179291852,0.15302988,45961.0,45960.0,2.20859125]
[1649179292102,0.15302988,45961.0,45960.0,2.20860512]
[1649179292203,0.15302988,45961.0,45960.0,1.62134189]
[1649179292992,0.15302988,45961.0,45960.0,1.74867311]
[1649179293294,0.15302988,45961.0,45960.0,1.37381444]
[1649179294746,0.10839674,45978.0,45962.0,0.08]
[1649179294851,0.10839674,45978.0,45964.0,0.08]
[1649179294949,0.10839674,45978.0,45971.0,0.17677168]
[1649179295047,0.10839674,45978.0,45972.0,0.703545]
[1649179295148,0.10839674,45978.0,45974.0,0.25677168]
[1649179295247,0.10839674,45978.0,45976.0,0.08]
[1649179295348,0.10839674,45978.0,45977.0,0.403545]
[1649179295547,0.10839674,45978.0,45977.0,0.70702537]
[1649179295649,0.10839674,45978.0,45977.0,1.31089457]
[1649179295747,0.10839674,45978.0,45977.0,1.13412289]
[1649179295848,0.10839674,45978.0,45977.0,1.61078294]
[1649179296047,0.10839674,45978.0,45977.0,1.01790537]
[1649179296221,0.10839674,45978.0,45977.0,0.89108743]
[1649179296304,0.10839674,45978.0,45977.0,0.703545]
[1649179296608,0.10839674,45978.0,45977.0,0.403545]
[1649179298060,0.10839674,45978.0,45977.0,0.41651249]
[1649179301699,0.10822474,45978.0,45977.0,0.41651249]
[1649179303508,0.10822474,45978.0,45977.0,0.09296749]
[1649179305645,0.10822474,45978.0,45977.0,0.01296749]
[1649179308904,0.10822474,45978.0,45977.0,0.41651249]
[1649179310304,0.10822474,45978.0,45977.0,0.41634049]
[1649179310703,0.10822474,45978.0,45977.0,0.40794049]
[1649179311105,0.10822474,45978.0,45977.0,0.41366007]
[1649179312150,0.10822474,45978.0,45977.0,0.71366007]
[1649179312399,0.10822474,45978.0,45977.0,0.41366007]
[1649179313254,0.10822474,45978.0,45977.0,0.41360659]
[1649179315446,0.10822474,45978.0,45977.0,0.71360659]
[1649179316648,0.10822474,45978.0,45977.0,0.41360659]
[1649179318401,0.10822474,45978.0,45977.0,0.71360659]
[1649179320651,0.10822474,45978.0,45977.0,0.41360659]
[1649179322467,0.10822474,45978.0,45977.0,0.01006159]
[1649179322863,0.10822474,45978.0,45977.0,0.09006159]
[1649179323161,0.10822474,45978.0,45977.0,0.41360659]
[1649179323263,0.10822474,45978.0,45977.0,0.09006159]
[1649179323365,0.10822474,45978.0,45977.0,0.41360659]
[1649179323562,0.10822474,45978.0,45977.0,0.09006159]
[1649179323914,0.10822474,45978.0,45977.0,0.41360659]
[1649179325868,0.10822474,45978.0,45977.0,0.01006159]
[1649179325965,0.10822474,45978.0,45977.0,0.41360659]
[1649179326195,0.10822474,45978.0,45977.0,0.09006159]
[1649179326496,0.10822474,45978.0,45977.0,0.41360659]
[1649179328250,0.10822474,45978.0,45977.0,0.01006159]
[1649179328348,0.10822474,45978.0,45977.0,0.09006159]
[1649179331399,0.10822474,45978.0,45977.0,0.01006159]
[1649179334597,0.43176974,45978.0,45977.0,0.01006159]
[1649179334695,0.10822474,45978.0,45977.0,0.01006159]
[1649179334798,0.43176974,45978.0,45977.0,0.01006159]
[1649179335499,0.43176974,45978.0,45977.0,0.00996823]
[1649179336853,0.68683041,45978.0,45977.0,0.00996823]
[1649179338856,0.98660376,45978.0,45977.0,0.00996823]
[1649179339908,0.73350141,45978.0,45977.0,0.00996823]
[1649179340114,1.03024701,45978.0,45977.0,0.00996823]
[1649179340812,0.73350141,45978.0,45977.0,0.00996823]
[1649179343910,0.47844074,45978.0,45977.0,0.00996823]
[1649179348308,0.47775957,45978.0,45977.0,0.00996823]
[1649179350452,0.77775957,45978.0,45977.0,0.00996823]
[1649179351456,0.73405957,45978.0,45977.0,0.00996823]
[1649179353160,0.43405957,45978.0,45977.0,0.00996823]
[1649179353612,0.73405957,45978.0,45977.0,0.00996823]
[1649179355164,0.43405957,45978.0,45977.0,0.00996823]
[1649179357496,0.73405957,45978.0,45977.0,0.00996823]
[1649179361106,0.73405957,45978.0,45977.0,0.08996823]
[1649179361602,0.43405957,45978.0,45977.0,0.08996823]
[1649179362555,0.43405957,45978.0,45977.0,0.00996823]
[1649179365340,0.43108857,45978.0,45977.0,0.00996823]
[1649179369046,0.73108857,45978.0,45977.0,0.00996823]
[1649179369598,0.73405957,45978.0,45977.0,0.00996823]
[1649179369696,0.88627335,45978.0,45977.0,0.00996823]
[1649179371554,0.88330235,45978.0,45977.0,0.00996823]
[1649179372300,0.58330235,45978.0,45977.0,0.00996823]
[1649179373151,0.58330235,45978.0,45977.0,0.00988224]
[1649179374103,0.47575878,45978.0,45977.0,0.00988224]
[1649179374707,0.77575878,45978.0,45977.0,0.00988224]
[1649179374805,0.87575878,45978.0,45977.0,0.00988224]
[1649179375596,0.87872978,45978.0,45977.0,0.00988224]
[1649179377198,0.57872978,45978.0,45977.0,0.00988224]
[1649179377505,0.47872978,45978.0,45977.0,0.00988224]
[1649179377612,0.47575878,45978.0,45977.0,0.00988224]
[1649179377807,0.32424877,45978.0,45977.0,0.00988224]
[1649179378400,0.32424877,45978.0,45977.0,0.33267451]
[1649179378500,0.323476,45978.0,45977.0,0.33267451]
[1649179380404,0.323476,45978.0,45977.0,0.00988224]
[1649179381705,0.323476,45978.0,45977.0,0.37717884]
[1649179382445,0.323476,45978.0,45977.0,0.08988224]
[1649179382699,0.323476,45978.0,45977.0,0.00988224]
[1649179384601,0.323476,45978.0,45977.0,0.3916474]
[1649179385755,0.08390097,45979.0,45977.0,0.3916474]
[1649179385853,0.03390097,45979.0,45977.0,0.3916474]
[1649179385954,0.08390097,45979.0,45977.0,0.3916474]
[1649179386055,0.03390097,45979.0,45977.0,0.3916474]
[1649179386705,0.323476,45978.0,45977.0,0.3916474]
[1649179386805,0.323476,45978.0,45977.0,0.39445101]
[1649179386905,0.08390097,45979.0,45977.0,0.39445101]
[1649179387256,0.03390097,45979.0,45977.0,0.39445101]
[1649179387358,0.08390097,45979.0,45977.0,0.39445101]
[1649179387657,0.03390097,45979.0,45977.0,0.39445101]
[1649179387775,0.323476,45978.0,45977.0,0.39445101]
[1649179387856,0.08390097,45979.0,45977.0,0.39445101]
[1649179388056,0.323476,45978.0,45977.0,0.39445101]
[1649179388158,0.03390097,45979.0,45977.0,0.39445101]
[1649179388359,0.323476,45978.0,45977.0,0.39445101]
[1649179388756,0.08302688,45979.0,45977.0,0.39445101]
[1649179388867,0.03302688,45979.0,45977.0,0.39445101]
[1649179389106,0.323476,45978.0,45977.0,0.39445101]
[1649179389307,0.03302688,45979.0,45977.0,0.39445101]
[1649179389508,0.323476,45978.0,45977.0,0.39445101]
[1649179389607,0.03302688,45979.0,45977.0,0.39445101]
[1649179389807,0.08302688,45979.0,45977.0,0.39445101]
[1649179390355,0.03302688,45979.0,45977.0,0.39445101]
[1649179390550,0.323476,45978.0,45977.0,0.39445101]
[1649179390702,0.323476,45978.0,45977.0,0.01268585]
[1649179391700,0.323476,45978.0,45977.0,0.09268585]
[1649179391801,0.323476,45978.0,45977.0,0.10356585]
[1649179392305,0.323476,45978.0,45977.0,0.09268585]
[1649179393750,0.323476,45978.0,45977.0,0.01268585]
[1649179394802,0.08302688,45979.0,45977.0,0.01268585]
[1649179394900,0.323476,45978.0,45977.0,0.01268585]
[1649179400414,0.323476,45978.0,45977.0,0.01257131]
[1649179404160,0.05439355,45976.0,45966.0,0.3322]
[1649179404312,0.054394,45971.0,45968.0,0.01088]
[1649179404460,0.054394,45971.0,45967.0,0.01088]
[1649179404560,0.054394,45971.0,45966.0,0.3147531]
[1649179405005,0.054394,45971.0,45966.0,0.04308]
[1649179405204,0.108789,45971.0,45966.0,0.04364132]
[1649179405304,0.158789,45971.0,45966.0,0.04364132]
[1649179405408,0.158789,45971.0,45966.0,0.03276132]
[1649179406108,0.22529699,45969.0,45966.0,0.03276132]
[1649179406207,0.22529699,45969.0,45966.0,0.0322]
[1649179406305,0.27529699,45969.0,45966.0,0.0322]
[1649179406406,0.27529699,45969.0,45966.0,0.03276132]
[1649179407308,0.05,45969.0,45966.0,0.03276132]
[1649179407412,0.05,45969.0,45966.0,0.0322]
[1649179407565,0.05,45971.0,45966.0,0.0322]
[1649179407566,0.1,45971.0,45966.0,0.0322]
[1649179407660,0.1,45971.0,45966.0,0.20916162]
[1649179407762,0.45389688,45979.0,45977.0,0.24705828]
[1649179407860,0.323476,45978.0,45977.0,0.24705828]
[1649179411348,0.323476,45978.0,45977.0,0.25108665]
[1649179411650,0.323476,45978.0,45977.0,0.55108665]
[1649179411767,0.323476,45978.0,45977.0,0.25108665]
[1649179411851,0.44302688,45979.0,45977.0,0.25108665]
[1649179412051,0.03302688,45979.0,45977.0,0.25108665]
[1649179412953,0.323476,45978.0,45977.0,0.25108665]
[1649179413054,0.03302688,45979.0,45977.0,0.25108665]
[1649179413258,0.00271201,45978.0,45977.0,0.25108665]
[1649179413757,0.32618801,45978.0,45977.0,0.25108665]
[1649179416607,0.32618801,45978.0,45977.0,0.30108665]
[1649179420777,0.53071473,45978.0,45977.0,0.30108665]
[1649179420975,0.32618801,45978.0,45977.0,0.30108665]
[1649179421925,0.37118801,45978.0,45977.0,0.30108665]
[1649179423328,0.37389936,45978.0,45977.0,0.30108665]
[1649179424149,0.32389936,45978.0,45977.0,0.30108665]
[1649179425700,0.37389936,45978.0,45977.0,0.30108665]
[1649179427103,0.38476936,45978.0,45977.0,0.30108665]
[1649179427548,0.38476936,45978.0,45977.0,0.29981189]
[1649179428148,0.53597792,45978.0,45977.0,0.29981189]
[1649179431005,0.38476936,45978.0,45977.0,0.29981189]
[1649179432081,0.5359543,45978.0,45977.0,0.29981189]
[1649179433086,0.38476936,45978.0,45977.0,0.29981189]
[1649179440067,0.37389936,45978.0,45977.0,0.29981189]
[1649179440464,0.47379936,45978.0,45977.0,0.29981189]
[1649179441067,0.37389936,45978.0,45977.0,0.29981189]
[1649179445029,0.04389688,45979.0,45978.0,0.10112664]
[1649179445129,0.08667888,45979.0,45978.0,0.10112664]
[1649179445981,0.07580888,45979.0,45978.0,0.10112664]
[1649179446209,0.08667888,45979.0,45978.0,0.10112664]
[1649179446499,0.07580888,45979.0,45978.0,0.10112664]
[1649179448554,0.07732313,45979.0,45978.0,0.10539614]
[1649179448654,0.07732313,45979.0,45978.0,0.10966982]
[1649179450601,0.07821614,45979.0,45978.0,0.10540032]
[1649179451954,0.12821614,45979.0,45978.0,0.10540032]
[1649179452857,0.08543414,45979.0,45978.0,0.10540032]
[1649179456759,0.08454113,45979.0,45978.0,0.10540032]
[1649179459312,0.03454113,45979.0,45978.0,0.10540032]
[1649179459414,0.12732313,45979.0,45978.0,0.10540032]
[1649179459515,0.07732313,45979.0,45978.0,0.10540032]
[1649179459613,0.12732313,45979.0,45978.0,0.10540032]
[1649179466414,0.18170813,45979.0,45978.0,0.10540032]
[1649179469262,0.18170813,45979.0,45978.0,0.10530272]
[1649179469909,0.12732313,45979.0,45978.0,0.10530272]
[1649179475160,0.23610413,45979.0,45978.0,0.10530272]
[1649179476525,0.18171213,45979.0,45978.0,0.10530272]
[1649179477528,0.14868525,45979.0,45978.0,0.10530272]
[1649179479633,0.09429625,45979.0,45978.0,0.10530272]
[1649179480163,0.05350768,45980.0,45979.0,0.1885925]
[1649179480361,0.00350768,45980.0,45979.0,0.1885925]
[1649179481468,0.0004866,45982.0,45979.0,0.1885925]
[1649179481972,0.00272816,45983.0,45979.0,0.1885925]
[1649179482169,0.00323708,45983.0,45979.0,0.1885925]
[1649179483178,0.00272816,45983.0,45979.0,0.1885925]
[1649179483273,0.00272816,45983.0,45981.0,0.00705933]
[1649179483371,0.00323708,45983.0,45981.0,0.00705933]
[1649179483572,0.05761008,45983.0,45981.0,0.00705933]
[1649179484309,0.05710116,45983.0,45981.0,0.00705933]
[1649179485811,0.05710116,45983.0,45979.0,0.18918089]
[1649179486612,0.00272816,45983.0,45979.0,0.18918089]
[1649179487116,0.00321393,45983.0,45979.0,0.18918089]
[1649179487805,0.00321393,45983.0,45982.0,0.0038251]
[1649179488054,0.00272816,45983.0,45982.0,0.0038251]
[1649179488156,0.00321475,45983.0,45982.0,0.0038251]
[1649179489156,0.00272816,45983.0,45982.0,0.0038251]
[1649179490056,0.5799,45984.0,45982.0,0.0038251]
[1649179491609,0.1499,45984.0,45982.0,0.0038251]
[1649179491717,0.05301758,45985.0,45982.0,0.0038251]
[1649179491718,0.00301758,45985.0,45982.0,0.0038251]
[1649179491809,0.00350557,45985.0,45982.0,0.0038251]
[1649179492061,0.00350557,45985.0,45983.0,0.323472]
[1649179492159,0.00350557,45985.0,45982.0,0.0038251]
[1649179492257,0.00350557,45985.0,45979.0,0.45981001]
[1649179492258,0.00350557,45985.0,45983.0,0.323472]
[1649179492360,0.00350557,45985.0,45980.0,0.323472]
[1649179492462,0.00350557,45985.0,45979.0,0.50805459]
[1649179492559,0.00350557,45985.0,45980.0,0.50073146]
[1649179492758,0.00301758,45985.0,45980.0,0.50073146]
[1649179493008,0.00048787,45984.0,45980.0,0.334342]
[1649179493713,0.00048787,45984.0,45980.0,0.75847422]
[1649179493817,0.00306811,45984.0,45980.0,0.75847422]
[1649179493911,0.00258024,45984.0,45980.0,0.75847422]
[1649179494112,0.00258024,45984.0,45980.0,0.334342]
[1649179494211,0.00306811,45984.0,45980.0,0.334342]
[1649179495073,0.00306811,45984.0,45980.0,0.434342]
[1649179495175,0.00258024,45984.0,45980.0,0.434342]
[1649179495426,0.00306812,45984.0,45983.0,0.323472]
[1649179495524,0.00306812,45984.0,45983.0,0.334342]
[1649179496324,0.00258024,45984.0,45983.0,0.334342]
[1649179497534,0.00258024,45984.0,45983.0,0.33843169]
[1649179500015,0.00258024,45984.0,45983.0,0.32756169]
[1649179500269,0.00230508,45984.0,45983.0,0.32756169]
[1649179500371,0.00230508,45984.0,45983.0,0.33843169]
[1649179500468,0.00230508,45984.0,45983.0,0.38213169]
[1649179500668,0.00230508,45984.0,45983.0,0.39313169]
[1649179500968,0.00301758,45985.0,45984.0,0.00461016]
[1649179501067,0.00301758,45985.0,45984.0,0.33895216]
[1649179501216,0.00301758,45985.0,45984.0,0.38265216]
[1649179502021,0.00052144,45986.0,45984.0,0.38265216]
[1649179502118,0.00052144,45986.0,45985.0,0.01087]
[1649179502223,0.00052144,45986.0,45985.0,0.334342]
[1649179502318,0.00334681,45987.0,45985.0,0.334342]
[1649179502471,0.00334681,45987.0,45985.0,0.378042]
[1649179502561,0.00334681,45987.0,45985.0,0.367172]
[1649179502762,0.00334681,45987.0,45985.0,0.59585064]
[1649179503464,0.00306731,45987.0,45985.0,0.59585064]
[1649179503812,0.0011,45988.0,45986.0,0.01087]
[1649179503913,0.0011,45988.0,45987.0,0.323472]
[1649179504012,0.0011,45988.0,45987.0,0.367172]
[1649179504514,0.0011,45988.0,45987.0,0.0437]
[1649179504664,0.0011,45988.0,45987.0,0.367172]
[1649179505263,0.00101295,45988.0,45987.0,0.367172]
[1649179505364,0.00101295,45988.0,45987.0,0.323472]
[1649179505866,0.00101295,45988.0,45986.0,0.01087]
[1649179505968,0.00101295,45988.0,45987.0,0.323472]
[1649179506067,0.00101295,45988.0,45987.0,0.00423095]
[1649179508163,0.00352717,45988.0,45985.0,0.01510095]
[1649179508864,0.00352717,45988.0,45986.0,0.323472]
[1649179508964,0.00352717,45988.0,45985.0,0.01510095]
[1649179509958,0.00352717,45988.0,45985.0,0.00423095]
[1649179510054,0.00352717,45988.0,45986.0,0.323472]
[1649179510168,0.00352717,45988.0,45987.0,0.28725583]
[1649179510267,0.0011,45992.0,45987.0,0.28725583]
[1649179510268,0.28035487,45997.0,45993.0,0.34500764]
[1649179510356,0.33035487,45997.0,45993.0,0.34500764]
[1649179510658,0.03488077,45994.0,45993.0,0.34500764]
[1649179511864,0.08488077,45994.0,45993.0,0.34500764]
[1649179514406,0.08488077,45994.0,45993.0,0.34848489]
[1649179516710,0.08844102,45994.0,45993.0,0.34848489]
[1649179518768,0.08844102,45994.0,45993.0,0.02611289]
[1649179518866,0.38844102,45994.0,45993.0,0.02611289]
[1649179518966,0.08844102,45994.0,45993.0,0.02611289]
[1649179519468,0.78,45993.0,45984.0,0.00461016]
[1649179519573,0.10874712,45991.0,45982.0,0.09734051]
[1649179519723,0.10874712,45991.0,45981.0,0.73137]
[1649179519724,0.10874514,45988.0,45981.0,0.73137]
[1649179519822,0.10874514,45988.0,45981.0,0.01087]
[1649179519823,0.054373,45987.0,45981.0,0.01087]
[1649179520570,0.054373,45987.0,45980.0,0.01087]
[1649179520871,0.27421276,45982.0,45981.0,0.323472]
[1649179521919,0.27421276,45982.0,45980.0,0.323472]
[1649179523225,0.32858876,45982.0,45980.0,0.323472]
[1649179523422,0.33496782,45982.0,45981.0,0.00444939]
[1649179523526,0.28059182,45982.0,45981.0,0.32792139]
[1649179523725,0.3349655,45982.0,45981.0,0.32792139]
[1649179524023,0.3349655,45982.0,45981.0,0.32349639]
[1649179525669,0.3349655,45982.0,45981.0,0.32792139]
[1649179527474,0.3849655,45982.0,45981.0,0.32792139]
[1649179527876,0.3849655,45982.0,45981.0,0.00444939]
[1649179528177,0.32987886,45982.0,45981.0,0.00444939]
[1649179529822,0.3344802,45982.0,45979.0,0.19335208]
[1649179529921,0.3344802,45982.0,45980.0,0.323472]
[1649179530022,0.3344802,45982.0,45981.0,0.323472]
[1649179530121,0.3844802,45982.0,45980.0,0.323472]
[1649179531375,0.3844802,45982.0,45981.0,0.323472]
[1649179531476,0.3844802,45982.0,45979.0,0.19334167]
[1649179531574,0.3844802,45982.0,45980.0,0.323472]
[1649179531673,0.3844802,45982.0,45981.0,0.32795814]
[1649179531774,0.3844802,45982.0,45981.0,0.00448614]
[1649179533513,0.3844802,45982.0,45979.0,0.19362426]
[1649179533611,0.3844802,45982.0,45980.0,0.323472]
[1649179533711,0.3844802,45982.0,45981.0,0.323472]
[1649179533811,0.3844802,45982.0,45979.0,0.19360372]
[1649179533913,0.3844802,45982.0,45980.0,0.323472]
[1649179534014,0.3844802,45982.0,45981.0,0.323472]
[1649179534115,0.3844802,45982.0,45979.0,0.19360372]
[1649179534264,0.3844802,45982.0,45980.0,0.323472]
[1649179534365,0.3,45981.0,45979.0,0.19360372]
[1649179534765,0.4497342,45982.0,45979.0,0.19360372]
[1649179534865,0.4497342,45982.0,45979.0,0.19307864]
[1649179534965,0.4934342,45982.0,45979.0,0.19307864]
[1649179535420,0.4825642,45982.0,45979.0,0.19307864]
[1649179535616,0.4825642,45982.0,45981.0,0.00448614]
[1649179535915,0.4281802,45982.0,45981.0,0.00448614]
[1649179537374,0.7281802,45982.0,45981.0,0.00448614]
[1649179537474,0.7281802,45982.0,45979.0,0.19311299]
[1649179538032,0.7825642,45982.0,45979.0,0.19311299]
[1649179538124,0.4825642,45982.0,45979.0,0.19311299]
[1649179538427,0.4825642,45982.0,45979.0,0.19263003]
[1649179539830,0.4825642,45982.0,45981.0,0.00403753]
[1649179540214,0.2754503,45982.0,45981.0,0.00403753]
[1649179540716,0.32982398,45982.0,45981.0,0.00403753]
[1649179541813,0.33611503,45982.0,45979.0,0.19311816]
[1649179542013,0.33611503,45982.0,45979.0,0.19263003]
[1649179542113,0.38611503,45982.0,45979.0,0.19263003]
[1649179542214,0.37860728,45982.0,45979.0,0.19263003]
[1649179543269,0.11066605,45982.0,45980.0,0.3]
[1649179543369,0.05629105,45982.0,45980.0,0.3]
[1649179543474,0.00472149,45982.0,45981.0,0.00721641]
[1649179545629,0.00472149,45982.0,45981.0,0.33068841]
[1649179545734,0.00472149,45982.0,45981.0,0.00721641]
[1649179545929,0.00472149,45982.0,45981.0,0.00361018]
[1649179546932,0.28612865,45982.0,45981.0,0.00361018]
[1649179547925,0.46289191,45982.0,45981.0,0.00361018]
[1649179548027,0.46289191,45982.0,45979.0,0.19148591]
[1649179548127,0.28612865,45982.0,45979.0,0.19148591]
[1649179548227,0.05437961,45980.0,45979.0,0.19148591]
[1649179548330,0.05437961,45980.0,45979.0,0.19200951]
[1649179549079,0.05437961,45980.0,45979.0,0.39200951]
[1649179549284,0.05437961,45980.0,45979.0,0.39148591]
[1649179549985,0.28140716,45982.0,45979.0,0.39148591]
[1649179550082,0.28197176,45982.0,45979.0,0.39148591]
[1649179550284,0.28197176,45982.0,45981.0,0.00289341]
[1649179550385,0.28140716,45982.0,45981.0,0.00289341]
[1649179552568,0.28140716,45982.0,45979.0,0.19201762]
[1649179552667,0.05,45981.0,45979.0,0.19201762]
[1649179552969,0.05,45981.0,45979.0,0.19148591]
[1649179554176,0.58140716,45982.0,45979.0,0.19148591]
[1649179554277,0.054386,45980.0,45979.0,0.19148591]
[1649179554426,0.354386,45980.0,45979.0,0.19148591]
[1649179554723,0.354386,45980.0,45979.0,0.1885925]
[1649179556674,0.054386,45980.0,45979.0,0.1885925]
[1649179556874,0.054386,45980.0,45979.0,0.19119735]
[1649179556975,0.054386,45980.0,45979.0,0.18918269]
[1649179558763,0.05882234,45980.0,45979.0,0.18918269]
[1649179559466,0.00443634,45980.0,45979.0,0.18918269]
[1649179559667,0.00443634,45980.0,45979.0,0.22238269]
[1649179560267,0.00443634,45980.0,45979.0,0.18918269]
[1649179562222,0.00573261,45980.0,45979.0,0.18918269]
[1649179562872,0.00573261,45980.0,45979.0,0.47880224]
[1649179562971,0.00573261,45980.0,45979.0,0.18918269]
[1649179568022,0.00573261,45980.0,45979.0,0.22118269]
[1649179568626,0.00573261,45980.0,45979.0,0.22183391]
[1649179570021,0.00573261,45980.0,45979.0,0.54530591]
[1649179570120,0.00573261,45980.0,45979.0,0.22183391]
[1649179570223,0.00048622,45991.0,45989.0,0.19459348]
[1649179571025,0.00298,45997.0,45989.0,0.19459348]
[1649179571122,0.00408,45998.0,45989.0,0.19459348]
[1649179572375,0.00021095,45996.0,45991.0,0.22409659]
[1649179573327,0.00408,45998.0,45991.0,0.22409659]
[1649179573532,0.00021095,45996.0,45991.0,0.22409659]
[1649179574478,0.00021095,45996.0,45993.0,0.00284946]
[1649179574576,0.00408,45998.0,45993.0,0.00284946]
[1649179574781,0.00054255,45996.0,45993.0,0.00284946]
[1649179575830,0.0011,45998.0,45993.0,0.00284946]
[1649179576030,0.00054255,45997.0,45993.0,0.00284946]
[1649179576481,0.00054255,45997.0,45995.0,0.00284392]
[1649179576930,0.00419923,45998.0,45995.0,0.00284392]
[1649179577231,0.00474177,45998.0,45995.0,0.00284392]
[1649179578120,0.00419923,45998.0,45995.0,0.00284392]
[1649179578617,0.00419923,45998.0,45996.0,0.00258934]
[1649179580220,0.22419923,45998.0,45996.0,0.00258934]
[1649179580470,0.16076367,45997.0,45996.0,0.00258934]
[1649179580674,0.46076367,45997.0,45996.0,0.00258934]
[1649179580971,0.46076367,45997.0,45995.0,0.00258898]
[1649179581129,0.3,45996.0,45995.0,0.00258898]
[1649179581831,0.354369,45996.0,45995.0,0.00258898]
[1649179582532,0.35735,45996.0,45995.0,0.00258898]
[1649179582836,0.35735,45996.0,45994.0,0.00518361]
[1649179582934,0.30298,45995.0,45994.0,0.00518361]
[1649179584537,0.30298,45995.0,45994.0,0.00259427]
[1649179584840,0.00298,45995.0,45994.0,0.00259427]
[1649179586621,0.00298,45995.0,45994.0,0.00518432]
[1649179586818,0.00298,45995.0,45994.0,0.00041115]
[1649179587272,0.30298,45995.0,45994.0,0.00041115]
[1649179588573,0.054373,45993.0,45989.0,0.19761548]
[1649179588732,0.28256404,45992.0,45989.0,0.19761548]
[1649179589532,0.22819104,45992.0,45989.0,0.19761548]
[1649179590636,0.23067847,45992.0,45991.0,0.00275814]
[1649179591593,0.28504747,45992.0,45991.0,0.00275814]
[1649179592723,0.28504747,45992.0,45983.0,0.008701]
[1649179592724,1.7,45991.0,45983.0,0.008701]
[1649179592824,0.28052302,45990.0,45983.0,0.008701]
[1649179592921,0.28052302,45990.0,45980.0,0.00048681]
[1649179593022,0.05438,45987.0,45980.0,0.00048681]
[1649179593124,0.002983,45986.0,45980.0,0.00048681]
[1649179593275,0.0437,45985.0,45980.0,0.00048681]
[1649179593377,0.30711055,45985.0,45980.0,0.00048681]
[1649179593723,0.2894802,45983.0,45979.0,0.18657784]
[1649179593823,0.002984,45982.0,45979.0,0.18657784]
[1649179593923,0.002984,45982.0,45980.0,0.00027623]
[1649179593924,0.046684,45982.0,45980.0,0.00027623]
[1649179594325,1.52950597,45982.0,45980.0,0.00027623]